bitfinex/quotes_SOLUSD_20241220
["timestamp","ask_amount","ask_price","bid_price","bid_amount"]
[1734717755597,25.96006093,192.38,192.31,6.0732]
[1734717756322,21.6166289,192.45,192.3,25.96006093]
[1734717756323,49.73694493,192.37,192.3,25.96006093]
[1734717756888,25.96006093,192.36,192.28,25.96006093]
[1734717757415,25.96006093,192.34,192.27,32.03326093]
[1734717757915,25.96006093,192.36,192.28,25.96006093]
[1734717758212,34.6065289,192.45,192.24,120.8]
[1734717758213,25.96006093,192.33,192.24,120.8]
[1734717758516,23.776884,192.32,192.25,25.96006093]
[1734717759719,23.776884,192.3,192.23,25.96006093]
[1734717759899,23.776884,192.28,192.21,25.96006093]
[1734717760099,25.96006093,192.27,192.19,33.61886093]
[1734717760802,23.776884,192.26,192.19,27.54566093]
[1734717761317,23.776884,192.26,192.19,25.96006093]
[1734717762811,23.776884,192.24,192.17,25.96006093]
[1734717763407,25.96006093,192.23,192.15,25.96006093]
[1734717763724,23.776884,192.2,192.13,25.96006093]
[1734717764802,25.96006093,192.19,192.13,25.96006093]
[1734717765202,23.776884,192.18,192.11,26.64559463]
[1734717765411,23.776884,192.16,192.11,26.64559463]
[1734717766319,49.73694493,192.16,192.11,0.6855337]
[1734717766528,25.96006093,192.15,192.11,0.6855337]
[1734717766726,23.776884,192.14,192.11,0.6855337]
[1734717766916,49.73694493,192.12,192.11,0.6855337]
[1734717768028,25.96006093,192.16,192.11,0.6855337]
[1734717768323,23.776884,192.16,192.11,0.6855337]
[1734717768529,20.0,192.15,192.11,0.6855337]
[1734717768731,23.776884,192.17,192.11,0.6855337]
[1734717769038,49.73694493,192.17,192.11,0.6855337]
[1734717769223,23.776884,192.15,192.11,0.6855337]
[1734717770730,25.96006093,192.18,192.11,0.6855337]
[1734717770932,25.96006093,192.2,192.12,25.96006093]
[1734717771232,25.96006093,192.19,192.11,28.20889463]
[1734717771427,25.96006093,192.16,192.11,0.6855337]
[1734717772208,23.776884,192.15,192.11,0.6855337]
[1734717772727,49.73694493,192.15,192.11,0.6855337]
[1734717772922,25.96006093,192.14,192.11,0.6855337]
[1734717773130,25.96006093,192.18,192.11,0.6855337]
[1734717773316,25.96006093,192.22,192.14,25.96006093]
[1734717773516,25.96006093,192.23,192.15,25.96006093]
[1734717773715,25.96006093,192.23,192.13,120.8]
[1734717773716,25.96006093,192.23,192.16,25.96006093]
[1734717774021,25.96006093,192.23,192.15,25.96006093]
[1734717774717,25.96006093,192.23,192.16,25.96006093]
[1734717774939,25.96006093,192.25,192.17,25.96006093]
[1734717775214,25.96006093,192.25,192.18,25.96006093]
[1734717775434,25.96006093,192.26,192.18,25.96006093]
[1734717776152,13.0012,192.29,192.18,25.96006093]
[1734717776153,25.96006093,192.25,192.18,25.96006093]
[1734717776310,25.96006093,192.25,192.17,154.69126093]
[1734717776840,25.96006093,192.25,192.18,25.96006093]
[1734717777216,25.96006093,192.26,192.19,25.96006093]
[1734717777418,25.96006093,192.29,192.21,25.96006093]
[1734717777670,25.96006093,192.3,192.23,25.96006093]
[1734717777926,83.21846093,192.4,192.19,133.8079]
[1734717777927,25.96006093,192.34,192.26,25.96006093]
[1734717778234,25.96006093,192.35,192.27,25.96006093]
[1734717778434,8.10162497,192.39,192.27,25.96006093]
[1734717778435,25.96006093,192.34,192.27,25.96006093]
[1734717778631,25.96006093,192.33,192.26,25.96006093]
[1734717779556,25.96006093,192.34,192.26,25.96006093]
[1734717779753,25.96006093,192.33,192.26,25.96006093]
[1734717779965,25.96006093,192.32,192.25,25.96006093]
[1734717780820,25.96006093,192.34,192.25,25.96006093]
[1734717781022,23.776884,192.33,192.25,25.96006093]
[1734717781458,25.96006093,192.34,192.27,25.96006093]
[1734717781848,23.776884,192.38,192.28,1.5967]
[1734717782026,25.96006093,192.41,192.33,25.96006093]
[1734717782235,25.96006093,192.43,192.35,25.96006093]
[1734717782430,25.96006093,192.45,192.37,25.96006093]
[1734717782924,25.96006093,192.45,192.39,25.96006093]
[1734717783123,25.96006093,192.47,192.39,25.96006093]
[1734717783445,25.96006093,192.51,192.43,25.96006093]
[1734717784057,25.96006093,192.53,192.45,25.96006093]
[1734717784633,25.96006093,192.49,192.43,25.96006093]
[1734717784827,25.96006093,192.53,192.45,146.76006093]
[1734717785033,25.96006093,192.56,192.5,25.96006093]
[1734717785252,2.14034632,192.59,192.51,25.96006093]
[1734717785253,25.96006093,192.59,192.51,25.96006093]
[1734717785552,25.96006093,192.57,192.49,25.96006093]
[1734717785753,25.96006093,192.51,192.43,25.96006093]
[1734717785935,25.96006093,192.48,192.41,146.76006093]
[1734717786639,23.776884,192.47,192.41,25.96006093]
[1734717787032,43.776884,192.43,192.37,146.76006093]
[1734717787231,20.0,192.41,192.37,25.96006093]
[1734717787442,20.0,192.41,192.34,127.0113]
[1734717787443,25.96006093,192.48,192.39,25.96006093]
[1734717787668,23.776884,192.44,192.38,25.96006093]
[1734717787828,23.776884,192.44,192.4,25.96006093]
[1734717788030,23.776884,192.44,192.38,25.96006093]
[1734717788534,23.776884,192.44,192.4,25.96006093]
[1734717788734,20.0,192.46,192.4,25.96006093]
[1734717789492,20.0,192.46,192.42,25.96006093]
[1734717789776,25.96006093,192.45,192.38,25.96006093]
[1734717789969,45.96006093,192.4,192.28,127.0113]
[1734717790162,20.0,192.4,192.33,25.96006093]
[1734717790362,20.0,192.4,192.35,25.96006093]
[1734717790961,23.776884,192.39,192.35,25.96006093]
[1734717791498,25.96006093,192.46,192.37,25.96006093]
[1734717791773,25.96006093,192.48,192.39,25.96006093]
[1734717792390,25.96006093,192.48,192.41,25.96006093]
[1734717792587,25.96006093,192.5,192.41,25.96006093]
[1734717792904,25.96006093,192.46,192.39,25.96006093]
[1734717793054,25.96006093,192.42,192.35,25.96006093]
[1734717793389,25.96006093,192.42,192.33,148.36046093]
[1734717793759,23.776884,192.41,192.33,148.36046093]
[1734717794876,43.776884,192.37,192.31,25.96006093]
[1734717795200,43.776884,192.37,192.31,146.76006093]
[1734717795383,43.776884,192.37,192.29,25.96006093]
[1734717795781,20.0,192.35,192.29,25.96006093]
[1734717796173,49.73694493,192.34,192.27,25.96006093]
[1734717796380,23.776884,192.34,192.27,25.96006093]
[1734717796591,23.776884,192.35,192.29,25.96006093]
[1734717796974,23.776884,192.35,192.27,25.96006093]
[1734717797303,23.776884,192.35,192.29,25.96006093]
[1734717799004,23.776884,192.39,192.33,25.96006093]
[1734717799378,23.776884,192.37,192.31,146.76006093]
[1734717799886,25.96006093,192.4,192.31,25.96006093]
[1734717800243,23.776884,192.39,192.31,146.76006093]
[1734717801414,25.96006093,192.34,192.23,127.3247]
[1734717801617,23.776884,192.33,192.25,25.96006093]
[1734717801777,25.96006093,192.38,192.29,25.96006093]
[1734717802127,23.776884,192.37,192.29,25.96006093]
[1734717802595,23.776884,192.37,192.31,25.96006093]
[1734717803101,20.0,192.33,192.29,25.96006093]
[1734717803278,20.0,192.33,192.27,25.96006093]
[1734717803598,25.96006093,192.36,192.27,25.96006093]
[1734717803802,23.776884,192.33,192.27,25.96006093]
[1734717805488,23.776884,192.29,192.25,25.96006093]
[1734717806229,23.776884,192.33,192.27,25.96006093]
[1734717807119,23.776884,192.31,192.25,25.96006093]
[1734717808692,25.96006093,192.38,192.29,25.96006093]
[1734717808895,25.96006093,192.38,192.31,25.96006093]
[1734717809096,25.96006093,192.4,192.33,25.96006093]
[1734717809603,25.96006093,192.4,192.31,146.76006093]
[1734717810622,23.776884,192.35,192.29,25.96006093]
[1734717811197,23.776884,192.35,192.27,25.96006093]
[1734717811396,23.776884,192.33,192.27,25.96006093]
[1734717811608,23.776884,192.33,192.23,140.3298]
[1734717811609,23.776884,192.35,192.29,25.96006093]
[1734717811904,23.776884,192.35,192.31,25.96006093]
[1734717813121,20.0,192.37,192.31,146.76006093]
[1734717813325,23.776884,192.39,192.33,25.96006093]
[1734717813534,25.96006093,192.44,192.35,25.96006093]
[1734717813820,6.5631,192.46,192.33,6.4178]
[1734717813821,25.96006093,192.46,192.38,25.96006093]
[1734717814815,25.96006093,192.48,192.4,25.96006093]
[1734717815121,23.776884,192.47,192.4,25.96006093]
[1734717815529,20.0,192.44,192.4,25.96006093]
[1734717815702,23.776884,192.43,192.4,25.96006093]
[1734717816214,23.776884,192.43,192.38,25.96006093]
[1734717817630,23.776884,192.43,192.36,25.96006093]
[1734717818703,20.0,192.4,192.34,25.96006093]
[1734717818903,20.0,192.35,192.29,6.2602]
[1734717819133,23.776884,192.32,192.27,1.6618]
[1734717819326,25.96006093,192.38,192.3,25.96006093]
[1734717819503,23.776884,192.34,192.32,25.96006093]
[1734717819908,23.776884,192.34,192.28,25.96006093]
[1734717820110,23.776884,192.34,192.24,6.2602]
[1734717820111,49.73694493,192.34,192.26,25.96006093]
[1734717820314,49.73694493,192.3,192.18,126.9659]
[1734717820520,23.776884,192.27,192.2,25.96006093]
[1734717820804,20.0,192.24,192.18,32.12596093]
[1734717821034,43.776884,192.23,192.18,32.12596093]
[1734717821326,23.776884,192.23,192.18,32.12596093]
[1734717821532,23.776884,192.23,192.2,25.96006093]
[1734717822715,25.96006093,192.3,192.22,25.96006093]
[1734717822918,20.0,192.26,192.22,25.96006093]
[1734717823117,23.776884,192.25,192.18,32.12596093]
[1734717823320,25.96006093,192.24,192.18,32.12596093]
[1734717823515,20.0,192.2,192.16,25.96006093]
[1734717823713,23.776884,192.19,192.16,25.96006093]
[1734717825039,25.96006093,192.24,192.16,25.96006093]
[1734717825333,23.776884,192.23,192.18,25.96006093]
[1734717825933,23.776884,192.21,192.14,25.96006093]
[1734717826430,23.776884,192.21,192.16,25.96006093]
[1734717827421,23.776884,192.21,192.14,25.96006093]
[1734717827615,20.0,192.18,192.14,25.96006093]
[1734717827816,23.776884,192.17,192.12,25.96006093]
[1734717828011,23.776884,192.17,192.11,0.6855337]
[1734717828240,23.776884,192.13,192.11,0.6855337]
[1734717828756,49.73694493,192.12,192.11,0.6855337]
[1734717829636,62.74964493,192.12,192.11,3.37e-05]
[1734717829933,23.776884,192.07,192.0,25.96006093]
[1734717830265,20.0,192.04,192.01,25.96006093]
[1734717830619,20.0,192.04,191.99,25.96006093]
[1734717830840,23.776884,192.03,191.99,25.96006093]
[1734717831227,25.96006093,192.08,192.01,25.96006093]
[1734717831429,20.0,192.05,192.01,25.96006093]
[1734717831639,23.776884,192.07,192.01,25.96006093]
[1734717833526,25.96006093,192.1,192.03,25.96006093]
[1734717833928,25.96006093,192.15,192.06,25.96006093]
[1734717834326,25.96006093,192.12,192.04,25.96006093]
[1734717834522,8.69489291,192.17,192.06,25.96006093]
[1734717834750,25.96006093,192.16,192.08,25.96006093]
[1734717834919,13.0078,192.2,192.1,25.96006093]
[1734717834920,25.96006093,192.18,192.1,25.96006093]
[1734717835126,25.96006093,192.2,192.12,25.96006093]
[1734717835516,25.96006093,192.16,192.08,25.96006093]
[1734717836752,23.776884,192.15,192.08,25.96006093]
[1734717837428,23.776884,192.08,191.91,121.4855337]
[1734717837629,71.92012186,192.1,191.91,121.4855337]
[1734717837630,23.776884,192.04,191.97,25.96006093]
[1734717838335,23.776884,192.04,191.99,25.96006093]
[1734717839029,20.0,192.07,192.03,25.96006093]
[1734717839231,23.776884,192.06,192.03,25.96006093]
[1734717840755,25.96006093,192.16,192.05,25.96006093]
[1734717840926,25.96006093,192.16,192.08,25.96006093]
[1734717841642,25.96006093,192.14,192.08,25.96006093]
[1734717841838,25.96006093,192.12,192.04,25.96006093]
[1734717842147,23.776884,192.11,192.04,25.96006093]
[1734717842347,25.96006093,192.1,192.02,25.96006093]
[1734717842729,25.96006093,192.08,192.0,25.96006093]
[1734717843255,23.776884,192.07,192.0,25.96006093]
[1734717843467,25.96006093,192.06,191.98,25.96006093]
[1734717843755,23.776884,192.03,191.96,25.96006093]
[1734717843932,23.776884,192.03,191.94,120.8]
[1734717843933,25.96006093,192.02,191.94,146.76006093]
[1734717844131,25.96006093,192.0,191.94,120.8]
[1734717844334,23.776884,191.99,191.93,7.7151]
[1734717844557,23.776884,191.99,191.93,6.1398]
[1734717844930,23.776884,191.99,191.94,25.96006093]
[1734717845330,25.96006093,192.02,191.94,25.96006093]
[1734717845560,23.776884,192.01,191.94,25.96006093]
[1734717846735,25.96006093,192.0,191.93,6.1398]
[1734717846955,23.776884,191.99,191.93,6.1398]
[1734717847146,23.776884,191.99,191.94,25.96006093]
[1734717847348,23.776884,191.99,191.93,32.09986093]
[1734717847661,25.96006093,191.98,191.91,0.6855337]
[1734717848036,49.73694493,191.97,191.91,0.6855337]
[1734717848446,23.776884,191.97,191.91,0.6855337]
[1734717848776,23.776884,191.97,191.92,25.96006093]
[1734717848954,23.776884,191.98,191.92,25.96006093]
[1734717849266,23.776884,191.98,191.91,26.64559463]
[1734717849439,49.73694493,191.98,191.91,26.64559463]
[1734717849760,23.776884,191.98,191.92,25.96006093]
[1734717849947,23.776884,191.99,191.92,25.96006093]
[1734717850145,23.776884,192.0,191.95,25.96006093]
[1734717850457,49.73694493,192.01,191.93,25.96006093]
[1734717850633,25.96006093,192.0,191.93,25.96006093]
[1734717850963,25.96006093,191.98,191.92,120.8]
[1734717851459,23.776884,191.99,191.92,146.76006093]
[1734717851647,49.73694493,191.99,191.92,146.76006093]
[1734717852044,23.776884,192.0,191.94,25.96006093]
[1734717852372,23.776884,192.0,191.93,25.96006093]
[1734717852953,49.73694493,192.0,191.93,25.96006093]
[1734717853170,49.73694493,192.0,191.92,120.8]
[1734717853758,23.776884,191.96,191.91,0.6855337]
[1734717854069,25.96006093,191.95,191.91,0.6855337]
[1734717854263,23.776884,191.96,191.91,0.6855337]
[1734717854443,25.96006093,191.99,191.92,25.96006093]
[1734717854639,23.776884,191.98,191.92,25.96006093]
[1734717855272,13.0182,192.04,191.92,25.96006093]
[1734717855273,25.96006093,192.0,191.92,25.96006093]
[1734717856168,25.96006093,192.02,191.94,25.96006093]
[1734717856348,25.96006093,191.96,191.91,0.6855337]
[1734717856662,25.96006093,191.94,191.91,0.6855337]
[1734717857247,23.776884,191.93,191.91,0.6855337]
[1734717857449,25.96006093,191.92,191.91,0.6855337]
[1734717857775,23.776884,191.92,191.91,0.6855337]
[1734717859952,49.73694493,191.92,191.91,0.6855337]
[1734717861871,81.00694493,191.92,191.91,0.6855337]
[1734717862259,49.73694493,191.92,191.91,0.6855337]
[1734717862666,25.96006093,191.92,191.91,0.6855337]
[1734717864872,49.73694493,191.92,191.91,0.6855337]
[1734717865473,23.776884,191.92,191.91,0.6855337]
[1734717865656,49.73694493,191.92,191.91,0.6855337]
[1734717866681,20.0,191.89,191.77,440.7445]
[1734717866880,49.73694493,191.88,191.79,25.96006093]
[1734717867184,23.776884,191.88,191.79,25.96006093]
[1734717867376,23.776884,191.86,191.79,25.96006093]
[1734717867804,23.776884,191.84,191.77,33.90456093]
[1734717867975,25.96006093,191.83,191.77,7.9445]
[1734717868168,25.96006093,191.83,191.75,25.96006093]
[1734717868169,23.776884,191.82,191.75,25.96006093]
[1734717868368,23.776884,191.8,191.73,25.96006093]
[1734717871984,23.776884,191.78,191.72,0.6855337]
[1734717872898,25.96006093,191.77,191.72,0.6855337]
[1734717873061,23.776884,191.76,191.72,0.6855337]
[1734717875455,25.96006093,191.79,191.72,0.6855337]
[1734717875662,25.96006093,191.81,191.73,25.96006093]
[1734717875864,25.96006093,191.83,191.75,25.96006093]
[1734717876164,25.96006093,191.81,191.73,25.96006093]
[1734717876368,25.96006093,191.76,191.72,0.6855337]
[1734717876960,23.776884,191.75,191.72,0.6855337]
[1734717877284,23.776884,191.73,191.72,0.6855337]
[1734717880089,25.96006093,191.76,191.72,0.6855337]
[1734717880867,25.96006093,191.77,191.72,0.6855337]
[1734717881390,25.96006093,191.73,191.72,0.6855337]
[1734717881766,49.73694493,191.73,191.72,0.6855337]
[1734717882281,23.776884,191.73,191.72,0.6855337]
[1734717882697,25.96006093,191.75,191.72,0.6855337]
[1734717882698,25.96006093,191.77,191.72,0.6855337]
[1734717882989,25.96006093,191.84,191.76,25.96006093]
[1734717883189,25.96006093,191.84,191.77,25.96006093]
[1734717884296,23.776884,191.83,191.77,25.96006093]
[1734717884685,25.96006093,191.86,191.79,25.96006093]
[1734717885189,25.96006093,191.88,191.81,25.96006093]
[1734717885497,25.96006093,191.92,191.85,25.96006093]
[1734717885664,25.96006093,191.94,191.87,25.96006093]
[1734717885865,25.96006093,191.94,191.85,25.96006093]
[1734717886688,23.776884,191.93,191.85,25.96006093]
[1734717886989,25.96006093,191.94,191.85,25.96006093]
[1734717888184,23.776884,191.93,191.85,25.96006093]
[1734717889691,25.96006093,191.96,191.89,25.96006093]
[1734717889997,15.10853481,191.99,191.89,25.96006093]
[1734717889998,20.0,191.95,191.89,25.96006093]
[1734717890317,25.96006093,191.96,191.89,25.96006093]
[1734717890496,25.96006093,191.94,191.87,31.96416093]
[1734717891194,23.776884,191.93,191.87,31.96416093]
[1734717891897,23.776884,191.93,191.85,25.96006093]
[1734717892091,25.96006093,191.9,191.84,1.547]
[1734717892291,20.0,191.91,191.84,1.547]
[1734717892478,23.776884,191.9,191.84,1.547]
[1734717893196,23.776884,191.91,191.84,1.547]
[1734717893697,23.776884,191.91,191.85,25.96006093]
[1734717897378,25.96006093,191.94,191.87,25.96006093]
[1734717898505,25.96006093,191.92,191.85,25.96006093]
[1734717898681,23.776884,191.91,191.85,25.96006093]
[1734717899297,23.776884,191.91,191.84,122.347]
[1734717899495,23.776884,191.91,191.84,148.30706093]
[1734717899799,25.96006093,191.9,191.82,25.96006093]
[1734717900104,23.776884,191.89,191.82,25.96006093]
[1734717900703,23.776884,191.85,191.78,25.96006093]
[1734717900907,25.96006093,191.84,191.76,25.96006093]
[1734717901116,23.776884,191.83,191.76,25.96006093]
[1734717901408,25.96006093,191.82,191.75,8.0913]
[1734717901781,23.776884,191.81,191.76,25.96006093]
[1734717901995,23.776884,191.81,191.74,25.96006093]
[1734717902883,23.776884,191.81,191.76,25.96006093]
[1734717903599,25.96006093,191.8,191.72,26.64559463]
[1734717903799,23.776884,191.79,191.72,26.64559463]
[1734717904001,23.776884,191.79,191.74,25.96006093]
[1734717904407,23.776884,191.79,191.72,26.64559463]
[1734717905808,23.776884,191.77,191.72,0.6855337]
[1734717906393,25.96006093,191.76,191.72,0.6855337]
[1734717906591,25.96006093,191.74,191.72,0.6855337]
[1734717906795,23.776884,191.73,191.72,0.6855337]
[1734717910118,23.776884,191.73,191.64,27.61286093]
[1734717910119,20.0,191.7,191.64,27.61286093]
[1734717910326,23.776884,191.69,191.64,27.61286093]
[1734717910901,49.73694493,191.69,191.64,1.6528]
[1734717911104,49.73694493,191.69,191.62,32.00646093]
[1734717911321,23.776884,191.66,191.59,17.9132553]
[1734717912336,16.3503553,191.64,191.57,6.2974]
[1734717912536,16.3503553,191.62,191.57,6.2974]
[1734717912842,43.776884,191.63,191.57,22.6477553]
[1734717913027,23.776884,191.63,191.57,6.2974]
[1734717913221,26.17392624,191.59,191.53,0.6855337]
[1734717913402,23.776884,191.63,191.53,0.6855337]
[1734717913403,26.17392624,191.57,191.53,0.6855337]
[1734717913813,23.776884,191.56,191.53,0.6855337]
[1734717914019,26.17392624,191.55,191.53,0.6855337]
[1734717914213,23.776884,191.54,191.53,0.6855337]
[1734717914928,1.5029,191.61,191.53,26.85945994]
[1734717914929,23.776884,191.58,191.53,26.85945994]
[1734717915431,28.23095477,191.61,191.53,26.85945994]
[1734717915603,26.17392624,191.59,191.53,0.6855337]
[1734717915803,23.776884,191.58,191.53,0.6855337]
[1734717917932,69.95081024,191.54,191.53,0.6855337]
[1734717918300,69.95081024,191.54,191.45,26.17392624]
[1734717918505,23.776884,191.51,191.43,26.17392624]
[1734717918708,26.17392624,191.5,191.43,26.17392624]
[1734717918929,26.17392624,191.5,191.41,120.8]
[1734717918930,23.776884,191.49,191.41,26.17392624]
[1734717919127,23.776884,191.49,191.39,0.78347917]
[1734717919326,26.17392624,191.52,191.45,26.17392624]
[1734717919525,23.776884,191.53,191.47,26.17392624]
[1734717919935,20.0,191.53,191.47,26.17392624]
[1734717920231,26.17392624,191.56,191.47,26.17392624]
[1734717920433,20.0,191.53,191.47,26.17392624]
[1734717920735,28.31933563,191.56,191.49,26.17392624]
[1734717921110,23.776884,191.55,191.49,26.17392624]
[1734717921356,26.17392624,191.6,191.53,26.17392624]
[1734717921526,26.17392624,191.62,191.53,26.17392624]
[1734717921936,26.17392624,191.64,191.55,26.17392624]
[1734717922258,26.17392624,191.6,191.53,26.17392624]
[1734717922619,26.17392624,191.62,191.55,26.17392624]
[1734717923419,26.17392624,191.64,191.57,26.17392624]
[1734717924055,26.17392624,191.64,191.56,6.562]
[1734717924749,26.17392624,191.64,191.57,26.17392624]
[1734717925635,26.17392624,191.64,191.56,6.562]
[1734717926111,26.17392624,191.64,191.57,26.17392624]
[1734717927027,26.17392624,191.62,191.56,6.562]
[1734717927259,23.776884,191.61,191.56,6.562]
[1734717928747,26.17392624,191.64,191.56,6.562]
[1734717928943,23.776884,191.63,191.56,6.562]
[1734717929649,26.17392624,191.62,191.53,26.17392624]
[1734717930629,23.776884,191.65,191.55,26.17392624]
[1734717930824,26.17392624,191.64,191.57,26.17392624]
[1734717931036,26.17392624,191.66,191.57,26.17392624]
[1734717931240,26.17392624,191.64,191.57,26.17392624]
[1734717931654,26.17392624,191.68,191.59,27.74422624]
[1734717933036,26.17392624,191.68,191.6,6.616]
[1734717934346,6.5792,191.74,191.61,26.17392624]
[1734717934554,26.17392624,191.7,191.61,26.17392624]
[1734717935456,26.17392624,191.7,191.63,26.17392624]
[1734717935656,26.17392624,191.76,191.69,26.17392624]
[1734717935840,26.17392624,191.78,191.69,146.97392624]
[1734717936038,26.17392624,191.8,191.71,26.17392624]
[1734717936241,26.17392624,191.8,191.73,26.17392624]
[1734717936633,26.17392624,191.82,191.73,26.17392624]
[1734717936852,26.17392624,191.82,191.71,0.78202078]
[1734717937136,26.17392624,191.82,191.74,26.17392624]
[1734717937451,26.17392624,191.84,191.76,26.17392624]
[1734717937650,26.17392624,191.89,191.81,26.17392624]
[1734717939155,26.17392624,191.87,191.79,26.17392624]
[1734717941057,26.17392624,191.8,191.73,26.17392624]
[1734717941234,26.17392624,191.8,191.71,26.17392624]
[1734717941439,26.17392624,191.78,191.71,26.17392624]
[1734717941639,26.17392624,191.78,191.7,7.7432]
[1734717941857,26.17392624,191.76,191.67,26.17392624]
[1734717942064,20.0,191.73,191.67,26.17392624]
[1734717942241,26.17392624,191.74,191.65,33.98672624]
[1734717943264,26.17392624,191.72,191.63,26.17392624]
[1734717943463,26.17392624,191.72,191.65,26.17392624]
[1734717945862,26.17392624,191.7,191.63,26.17392624]
[1734717946065,26.17392624,191.68,191.61,154.65482624]
[1734717946278,26.17392624,191.66,191.61,1.5854]
[1734717946561,26.17392624,191.66,191.57,154.75502624]
[1734717946768,26.17392624,191.64,191.57,7.7811]
[1734717948269,26.17392624,191.64,191.55,26.17392624]
[1734717949868,26.17392624,191.62,191.53,26.17392624]
[1734717951370,26.17392624,191.62,191.55,26.17392624]
[1734717952271,26.17392624,191.64,191.57,26.17392624]
[1734717952783,26.17392624,191.66,191.57,26.17392624]
[1734717953767,26.17392624,191.66,191.59,26.17392624]
[1734717955850,26.17392624,191.66,191.57,26.17392624]
[1734717956255,15.13717512,191.7,191.55,120.8]
[1734717956256,20.0,191.63,191.55,120.8]
[1734717956495,26.17392624,191.6,191.52,7.5545]
[1734717956701,26.17392624,191.6,191.52,33.72842624]
[1734717956858,26.17392624,191.62,191.52,7.5545]
[1734717957176,20.0,191.54,191.47,33.93772624]
[1734717958982,20.0,191.52,191.47,26.17392624]
[1734717959275,20.0,191.5,191.45,26.17392624]
[1734717960051,20.0,191.5,191.43,154.73772624]
[1734717961177,20.0,191.48,191.39,120.8]
[1734717961475,20.0,191.48,191.41,26.17392624]
[1734717963175,20.0,191.46,191.41,26.17392624]
[1734717963375,26.17392624,191.49,191.41,26.17392624]
[1734717963677,26.17392624,191.51,191.43,26.17392624]
[1734717963974,20.0,191.5,191.43,26.17392624]
[1734717964168,26.17392624,191.51,191.43,26.95718001]
[1734717964375,26.17392624,191.51,191.43,26.17392624]
[1734717964765,22.65339045,191.57,191.43,26.17392624]
[1734717964766,26.17392624,191.55,191.47,146.97392624]
[1734717967177,20.0,191.52,191.45,26.17392624]
[1734717967366,26.17392624,191.51,191.44,128.8581]
[1734717967762,20.0,191.52,191.44,128.8581]
[1734717967962,46.17392624,191.53,191.44,128.8581]
[1734717968175,46.17392624,191.53,191.45,26.17392624]
[1734717968557,26.17392624,191.55,191.47,26.17392624]
[1734717968962,20.0,191.52,191.45,26.17392624]
[1734717969271,20.0,191.46,191.41,26.17392624]
[1734717969877,5.86920635,191.55,191.43,26.17392624]
[1734717969878,26.17392624,191.51,191.43,26.17392624]
[1734717970263,26.17392624,191.49,191.41,26.17392624]
[1734717970669,20.0,191.46,191.39,26.17392624]
[1734717971164,46.17392624,191.49,191.41,26.17392624]
[1734717971577,26.17392624,191.47,191.39,26.17392624]
[1734717972159,46.17392624,191.49,191.41,26.17392624]
[1734717972781,20.0,191.49,191.43,26.17392624]
[1734717973286,26.17392624,191.47,191.39,146.97392624]
[1734717973500,26.17392624,191.47,191.39,26.17392624]
[1734717973783,26.17392624,191.45,191.38,8.0867]
[1734717974575,26.17392624,191.45,191.38,1.5371]
[1734717974767,20.0,191.42,191.37,26.17392624]
[1734717975657,26.17392624,191.45,191.37,26.17392624]
[1734717976870,26.17392624,191.49,191.41,26.17392624]
[1734717977198,26.17392624,191.47,191.39,26.17392624]
[1734717977900,26.17392624,191.45,191.37,146.97392624]
[1734717978689,26.17392624,191.43,191.35,26.17392624]
[1734717980266,28.23782824,191.47,191.39,26.17392624]
[1734717980461,26.17392624,191.47,191.39,26.17392624]
[1734717980669,38.6994968,191.52,191.36,0.78359976]
[1734717980670,26.17392624,191.49,191.41,26.17392624]
[1734717981087,26.17392624,191.51,191.43,26.17392624]
[1734717981264,26.17392624,191.51,191.42,144.576884]
[1734717981469,26.17392624,191.53,191.44,26.17392624]
[1734717981886,26.17392624,191.53,191.46,26.17392624]
[1734717984783,26.17392624,191.53,191.45,23.776884]
[1734717985515,2.10678609,191.56,191.48,26.17392624]
[1734717985686,26.17392624,191.59,191.52,26.17392624]
[1734717985886,26.17392624,191.61,191.52,26.17392624]
[1734717986594,26.17392624,191.63,191.55,152.784684]
[1734717986791,26.17392624,191.63,191.56,26.17392624]
[1734717988098,26.17392624,191.63,191.55,8.2078]
[1734717988283,26.17392624,191.61,191.55,8.2078]
[1734717988999,26.17392624,191.63,191.56,26.17392624]
[1734717989379,26.17392624,191.65,191.56,26.17392624]
[1734717990197,26.17392624,191.63,191.56,26.17392624]
[1734717990395,26.17392624,191.59,191.51,146.97392624]
[1734717990589,26.17392624,191.59,191.49,1.5175]
[1734717990590,26.17392624,191.57,191.49,148.49142624]
[1734717991382,26.17392624,191.57,191.49,27.69142624]
[1734717991809,26.17392624,191.59,191.51,26.17392624]
[1734717992231,26.17392624,191.59,191.51,120.8]
[1734717992437,20.0,191.5,191.41,120.8]
[1734717992744,26.17392624,191.49,191.41,120.8]